fUST/lending_fUST_20240413
["ID","MTS","AMOUNT","RATE_DAILY","PERIOD"]
[322308056,1712944241363,-500.0,0.00054794,120]
[322308058,1712944241372,-304.36688897,0.00054794,120]
[322308060,1712944241382,-500.0,0.00054794,120]
[322308062,1712944241396,-504.78489958,0.00054794,120]
[322308064,1712944241405,-500.0,0.00054794,120]
[322308066,1712944241414,-500.0,0.00054794,120]
[322308068,1712944241424,-500.0,0.00054794,120]
[322308070,1712944241433,-500.0,0.00054794,120]
[322308072,1712944241442,-500.0,0.00054794,7]
[322308074,1712944241451,-500.0,0.00054794,120]
[322308076,1712944241460,-500.0,0.00054794,120]
[322308078,1712944241471,-500.0,0.00054794,120]
[322308080,1712944241482,-500.0,0.00054794,120]
[322308082,1712944241492,-500.0,0.00054794,120]
[322308084,1712944241502,-398.12962254,0.00054794,120]
[322308086,1712944241512,-500.0,0.00054794,120]
[322308088,1712944241522,-500.0,0.00054794,120]
[322308090,1712944241532,-500.0,0.00054794,120]
[322308092,1712944241542,-500.0,0.00054794,120]
[322308094,1712944241552,-500.0,0.00054794,120]
[322308096,1712944241562,-460.75941133,0.00054794,120]
[322308098,1712944241572,-503.65049161,0.00054794,120]
[322308100,1712944241582,-500.0,0.00054794,120]
[322308102,1712944241593,-501.2244206,0.00054794,120]
[322308105,1712944241606,-500.0,0.00054794,120]
[322308106,1712944241617,-500.0,0.00054794,120]
[322308109,1712944241627,-500.0,0.00054794,120]
[322308111,1712944241639,-500.0,0.00054794,120]
[322308113,1712944241652,-500.0,0.00054794,120]
[322308114,1712944241662,-504.12329568,0.00054794,120]
[322308117,1712944241673,-500.0,0.00054794,14]
[322308119,1712944241682,-500.0,0.00054794,120]
[322308120,1712944241692,-500.0,0.00054794,120]
[322308123,1712944241701,-500.0,0.00054794,120]
[322308124,1712944241712,-500.0,0.00054794,120]
[322308127,1712944241722,-500.0,0.00054794,120]
[322308129,1712944241733,-501.14351935,0.00054794,120]
[322308130,1712944241744,-500.0,0.00054794,120]
[322308133,1712944241754,-500.0,0.00054794,120]
[322308135,1712944241764,-574.41947554,0.00054794,120]
[322308136,1712944241775,-500.0,0.00054794,120]
[322308139,1712944241785,-500.0,0.00054794,120]
[322308141,1712944241796,-500.0,0.00054794,120]
[322308143,1712944241805,-500.0,0.00054794,120]
[322308145,1712944241814,-500.0,0.00054794,120]
[322308146,1712944241823,-500.0,0.00054794,120]
[322308149,1712944241833,-500.0,0.00054794,120]
[322308151,1712944241843,-500.0,0.00054794,120]
[322308153,1712944241854,-500.0,0.00054794,120]
[322308154,1712944241864,-504.96047016,0.00054794,120]
[322308156,1712944241878,-500.0,0.00054794,120]
[322308158,1712944241888,-500.0,0.00054794,120]
[322308161,1712944241901,-500.0,0.00054794,120]
[322308163,1712944241912,-500.0,0.00054794,120]
[322308164,1712944241922,-500.0,0.00054794,120]
[322308167,1712944241933,-500.0,0.00054794,120]
[322308168,1712944241944,-500.0,0.00054794,120]
[322308170,1712944241954,-500.0,0.00054794,120]
[322308173,1712944241964,-500.0,0.00054794,120]
[322308175,1712944241974,-500.0,0.00054794,120]
[322308176,1712944241984,-500.0,0.00054794,120]
[322308178,1712944241994,-500.0,0.00054794,120]
[322308181,1712944242004,-631.29170486,0.00054794,120]
[322308182,1712944242014,-500.0,0.00054794,120]
[322308184,1712944242024,-500.0,0.00054794,120]
[322308186,1712944242034,-500.0,0.00054794,120]
[322308188,1712944242044,-500.28658205,0.00054794,120]
[322308190,1712944242052,-500.0,0.00054794,120]
[322308192,1712944242062,-301.4684074,0.00054794,120]
[322308194,1712944242071,-500.0,0.00054794,120]
[322308196,1712944242081,-500.0,0.00054794,120]
[322308198,1712944242090,-500.0,0.00054794,120]
[322308200,1712944242100,-500.0,0.00054794,120]
[322308202,1712944242110,-500.0,0.00054794,120]
[322308204,1712944242120,-500.0,0.00054794,120]
[322308206,1712944242130,-619.7987976,0.00054794,120]
[322308208,1712944242140,-500.0,0.00054794,120]
[322308210,1712944242153,-500.0,0.00054794,120]
[322308212,1712944242165,-500.0,0.00054794,120]
[322308214,1712944242174,-500.0,0.00054794,120]
[322308216,1712944242184,-500.0,0.00054794,120]
[322308218,1712944242193,-500.0,0.00054794,120]
[322308220,1712944242203,-500.0,0.00054794,120]
[322308222,1712944242213,-522.42007486,0.00054794,120]
[322308224,1712944242223,-1000.0,0.00054794,7]
[322308226,1712944242234,-500.81627046,0.00054794,120]
[322308228,1712944242244,-500.0,0.00054794,120]
[322308230,1712944242254,-500.0,0.00054794,120]
[322308232,1712944242265,-500.0,0.00054794,120]
[322308234,1712944242274,-500.0,0.00054794,120]
[322308236,1712944242284,-500.0,0.00054794,120]
[322308238,1712944242293,-500.0,0.00054794,120]
[322308240,1712944242305,-500.0,0.00054794,120]
[322308242,1712944242314,-508.71,0.00054794,120]
[322308244,1712944242324,-500.0,0.00054794,120]
[322308246,1712944242335,-500.0,0.00054794,120]
[322308248,1712944242344,-500.0,0.00054794,120]
[322308250,1712944242356,-500.0,0.00054794,120]
[322308252,1712944242366,-500.0,0.00054794,120]
[322308254,1712944242376,-500.0,0.00054794,120]
[322308256,1712944242387,-500.0,0.00054794,120]
[322308258,1712944242398,-285.03244185,0.00054794,120]
[322308260,1712944242407,-500.0,0.00054794,120]
[322308262,1712944242418,-500.0,0.00054794,120]
[322308264,1712944242427,-500.0,0.00054794,120]
[322308267,1712944242438,-500.0,0.00054794,120]
[322308269,1712944242448,-500.0,0.00054794,120]
[322308270,1712944242458,-586.09549858,0.00054794,120]
[322308273,1712944242469,-597.52666499,0.00054794,120]
[322308275,1712944242479,-500.0,0.00054794,120]
[322308276,1712944242489,-500.0,0.00054794,120]
[322308278,1712944242499,-500.0,0.00054794,120]
[322308280,1712944242510,-500.0,0.00054794,120]
[322308283,1712944242521,-500.0,0.00054794,120]
[322308285,1712944242531,-500.0,0.00054794,120]
[322308286,1712944242541,-500.0,0.00054794,120]
[322308289,1712944242552,-500.0,0.00054794,120]
[322308290,1712944242562,-500.0,0.00054794,120]
[322308292,1712944242573,-500.0,0.00054794,120]
[322308294,1712944242584,-500.32403526,0.00054794,120]
[322308296,1712944242593,-500.0,0.00054794,120]
[322308299,1712944242604,-584.44120467,0.00054794,120]
[322308301,1712944242614,-500.0,0.00054794,120]
[322308303,1712944242624,-500.0,0.00054794,120]
[322308304,1712944242635,-500.0,0.00054794,120]
[322308306,1712944242647,-500.0,0.00054794,120]
[322308308,1712944242657,-500.0,0.00054794,120]
[322308310,1712944242668,-500.0,0.00054794,120]
[322308312,1712944242678,-500.0,0.00054794,120]
[322308321,1712944242752,-503.98101006,0.00054794,120]
[322308323,1712944242768,-500.0,0.00054794,120]
[322308325,1712944242779,-500.0,0.00054794,120]
[322308328,1712944242789,-512.33534483,0.00054794,120]
[322308329,1712944242798,-500.0,0.00054794,120]
[322308332,1712944242808,-500.0,0.00054794,120]
[322308334,1712944242817,-500.0,0.00054794,120]
[322308335,1712944242826,-525.92632119,0.00054794,120]
[322308337,1712944242837,-500.0,0.00054794,120]
[322308340,1712944242850,-500.0,0.00054794,120]
[322308342,1712944242859,-502.2860714,0.00054794,120]
[322308344,1712944242868,-500.0,0.00054794,120]
[322308346,1712944242878,-500.0,0.00054794,120]
[322308348,1712944242888,-372.2863913,0.00054794,120]
[322308349,1712944242900,-507.54911695,0.00054794,120]
[322308351,1712944242910,-500.0,0.00054794,120]
[322308353,1712944242920,-500.0,0.00054794,120]
[322308355,1712944242931,-500.0,0.00054794,120]
[322308357,1712944242940,-500.0,0.00054794,120]
[322308358,1712944242950,-500.0,0.00054794,120]
[322308360,1712944242959,-500.0,0.00054794,120]
[322308362,1712944242969,-500.0,0.00054794,120]
[322308364,1712944242978,-500.0,0.00054794,120]
[322308367,1712944242988,-501.45372642,0.00054794,120]
[322308368,1712944242997,-500.0,0.00054794,120]
[322308370,1712944243007,-500.0,0.00054794,120]
[322308371,1712944243016,-500.0,0.00054794,120]
[322308372,1712944243025,-500.0,0.00054794,120]
[322308374,1712944243034,-500.0,0.00054794,120]
[322308376,1712944243043,-500.0,0.00054794,120]
[322308377,1712944243052,-500.0,0.00054794,120]
[322308379,1712944243061,-500.0,0.00054794,120]
[322308381,1712944243069,-500.0,0.00054794,120]
[322308382,1712944243078,-500.0,0.00054794,120]
[322308383,1712944243087,-312.01041441,0.00054794,120]
[322308384,1712944243096,-500.0,0.00054794,120]
[322308385,1712944243105,-500.0,0.00054794,120]
[322308386,1712944243115,-500.0,0.00054794,120]
[322308387,1712944243124,-500.0,0.00054794,120]
[322308388,1712944243133,-500.0,0.00054794,120]
[322308389,1712944243143,-500.0,0.00054794,120]
[322308390,1712944243153,-500.0,0.00054794,120]
[322308391,1712944243162,-500.0,0.00054794,120]
[322308393,1712944243171,-500.0,0.00054794,120]
[322308394,1712944243180,-500.0,0.00054794,120]
[322308396,1712944243189,-500.0,0.00054794,120]
[322308398,1712944243199,-500.0,0.00054794,120]
[322308400,1712944243208,-500.0,0.00054794,120]
[322308402,1712944243217,-617.19848953,0.00054794,120]
[322308404,1712944243227,-500.0,0.00054794,120]
[322308406,1712944243237,-500.0,0.00054794,120]
[322308409,1712944243247,-500.0,0.00054794,120]
[322308411,1712944243256,-500.0,0.00054794,120]
[322308414,1712944243266,-500.0,0.00054794,120]
[322308415,1712944243275,-500.0,0.00054794,120]
[322308417,1712944243285,-500.0,0.00054794,120]
[322308419,1712944243294,-500.0,0.00054794,120]
[322308420,1712944243304,-230.05888057,0.00054794,120]
[322308422,1712944243315,-500.9808839,0.00054794,120]
[322308424,1712944243324,-501.34104571,0.00054794,120]
[322308426,1712944243334,-500.0,0.00054794,120]
[322308428,1712944243344,-500.0,0.00054794,120]
[322308431,1712944243353,-500.0,0.00054794,120]
[322308434,1712944243363,-500.0,0.00054794,120]
[322308436,1712944243374,-500.0,0.00054794,120]
[322308439,1712944243383,-500.0,0.00054794,20]
[322308442,1712944243392,-500.0,0.00054794,120]
[322308444,1712944243408,-500.0,0.00054794,120]
[322308447,1712944243417,-585.2681263,0.00054794,120]
[322308450,1712944243427,-500.0,0.00054794,120]
[322308453,1712944243437,-500.0,0.00054794,120]
[322308455,1712944243446,-500.0,0.00054794,120]
[322308458,1712944243455,-500.0,0.00054794,120]
[322308461,1712944243465,-518.94341513,0.00054794,120]
[322308464,1712944243475,-500.0,0.00054794,120]
[322308467,1712944243484,-500.0,0.00054794,120]
[322308468,1712944243494,-513.00692363,0.00054794,120]
[322308471,1712944243503,-162.44536166,0.00054794,120]
[322308474,1712944243513,-274.5924307,0.00054794,120]
[322308476,1712944243522,-500.0,0.00054794,120]
[322308479,1712944243531,-500.0,0.00054794,120]
[322308482,1712944243540,-568.2795183,0.00054794,120]
[322308484,1712944243549,-500.0,0.00054794,120]
[322308487,1712944243558,-500.0,0.00054794,120]
[322308490,1712944243567,-500.0,0.00054794,120]
[322308493,1712944243576,-500.0,0.00054794,120]
[322308495,1712944243586,-500.0,0.00054794,120]
[322308498,1712944243594,-500.0,0.00054794,120]
[322308501,1712944243604,-500.0,0.00054794,120]
[322308504,1712944243613,-896.63,0.00054794,120]
[322308506,1712944243622,-500.0,0.00054794,120]
[322308508,1712944243631,-500.0,0.00054794,120]
[322308510,1712944243640,-751.59,0.00054794,120]
[322308512,1712944243655,-225.54366451,0.00054794,120]
[322308514,1712944243665,-500.0,0.00054794,120]
[322308516,1712944243675,-500.0,0.00054794,120]
[322308518,1712944243684,-504.48504271,0.00054794,120]
[322308520,1712944243693,-500.0,0.00054794,120]
[322308522,1712944243701,-500.0,0.00054794,120]
[322308523,1712944243711,-506.88096123,0.00054794,120]
[322308526,1712944243721,-504.09434844,0.00054794,120]
[322308528,1712944243731,-500.0,0.00054794,120]
[322308530,1712944243740,-500.0,0.00054794,120]
[322308532,1712944243749,-500.0,0.00054794,120]
[322308534,1712944243758,-300.0,0.00054794,7]
[322308536,1712944243768,-24487.54,0.00054794,120]
[322308538,1712944243778,-199.40092543,0.00054794,120]
[322308540,1712944243787,-500.0,0.00054794,120]
[322308542,1712944243796,-500.0,0.00054794,120]
[322308544,1712944243806,-500.0,0.00054794,120]
[322308546,1712944243815,-500.0,0.00054794,120]
[322308547,1712944243824,-503.26357152,0.00054794,120]
[322308549,1712944243833,-500.0,0.00054794,120]
[322308551,1712944243843,-500.0,0.00054794,120]
[322308553,1712944243853,-381.13798679,0.00054794,120]
[322308555,1712944243862,-500.0,0.00054794,120]
[322308557,1712944243873,-500.0,0.00054794,120]
[322308559,1712944243882,-500.0,0.00054794,120]
[322308562,1712944243892,-500.0,0.00054794,120]
[322308563,1712944243906,-552.601282,0.00054794,120]
[322308566,1712944243915,-1000.0,0.00054794,120]
[322308568,1712944243926,-500.0,0.00054794,120]
[322308569,1712944243936,-1597.15,0.00054794,21]
[322308572,1712944243947,-500.0,0.00054794,120]
[322308573,1712944243957,-505.18917879,0.00054794,120]
[322308575,1712944243966,-500.0,0.00054794,120]
[322308577,1712944243976,-500.0,0.00054794,120]
[322308579,1712944243985,-514.59037785,0.00054794,7]
[322308581,1712944243994,-500.0,0.00054794,120]
[322308583,1712944244003,-500.0,0.00054794,120]
[322308585,1712944244012,-500.0,0.00054794,120]
[322308587,1712944244022,-503.48780437,0.00054794,120]
[322308589,1712944244031,-500.0,0.00054794,120]
[322308591,1712944244040,-500.0,0.00054794,120]
[322308592,1712944244050,-587.64,0.00054794,120]
[322308594,1712944244059,-1113.96,0.00054794,120]
[322308596,1712944244068,-500.0,0.00054794,120]
[322308597,1712944244077,-500.0,0.00054794,120]
[322308598,1712944244087,-500.0,0.00054794,120]
[322308599,1712944244096,-500.0,0.00054794,120]
[322308601,1712944244105,-526.08765852,0.00054794,120]
[322308603,1712944244115,-500.0,0.00054794,120]
[322308606,1712944244124,-500.0,0.00054794,120]
[322308608,1712944244134,-500.0,0.00054794,120]
[322308609,1712944244143,-914.8,0.00054794,120]
[322308611,1712944244154,-500.0,0.00054794,120]
[322308613,1712944244163,-500.0,0.00054794,120]
[322308615,1712944244173,-500.0,0.00054794,120]
[322308617,1712944244181,-171.83381504,0.00054794,120]
[322308619,1712944244190,-621.78,0.00054794,120]
[322308621,1712944244199,-2788.57,0.00054794,120]
[322308623,1712944244208,-619.5972788,0.00054794,120]
[322308625,1712944244217,-500.0,0.00054794,120]
[322308627,1712944244229,-1832.04,0.00054794,120]
[322308629,1712944244238,-500.0,0.00054794,120]
[322308631,1712944244247,-500.0,0.00054794,120]
[322308633,1712944244257,-167.03,0.00054794,120]
[322308635,1712944244265,-500.0,0.00054794,120]
[322308637,1712944244275,-500.0,0.00054794,120]
[322308639,1712944244283,-500.0,0.00054794,120]
[322308641,1712944244293,-500.0,0.00054794,120]
[322308643,1712944244303,-961.76,0.00054794,120]
[322308645,1712944244312,-506.91497064,0.00054794,120]
[322308647,1712944244321,-501.39891535,0.00054794,120]
[322308649,1712944244330,-500.0,0.00054794,120]
[322308650,1712944244339,-238.52932012,0.00054794,120]
[322308651,1712944244348,-500.0,0.00054794,120]
[322308652,1712944244357,-500.0,0.00054794,120]
[322308653,1712944244367,-500.0,0.00054794,120]
[322308654,1712944244377,-1119.87,0.00054794,120]
[322308655,1712944244387,-500.0,0.00054794,120]
[322308656,1712944244400,-247.55776255,0.00054794,120]
[322308657,1712944244411,-500.0,0.00054794,120]
[322308658,1712944244421,-500.0,0.00054794,120]
[322308659,1712944244431,-500.0,0.00054794,120]
[322308660,1712944244442,-500.0,0.00054794,60]
[322308661,1712944244451,-1497.12,0.00054794,120]
[322308662,1712944244460,-500.0,0.00054794,120]
[322308663,1712944244470,-500.0,0.00054794,120]
[322308664,1712944244480,-500.0,0.00054794,120]
[322308665,1712944244490,-500.0,0.00054794,120]
[322308666,1712944244501,-502.34184716,0.00054794,120]
[322308673,1712944244574,-500.0,0.00054794,120]
[322308675,1712944244584,-500.0,0.00054794,120]
[322308677,1712944244596,-500.0,0.00054794,120]
[322308679,1712944244606,-151.0,0.00054794,120]
[322308681,1712944244617,-500.0,0.00054794,120]
[322308683,1712944244627,-313.40421481,0.00054794,120]
[322308685,1712944244638,-6525.26,0.00054794,120]
[322308688,1712944244651,-500.0,0.00054794,120]
[322308689,1712944244662,-500.0,0.00054794,120]
[322308691,1712944244673,-1000.0,0.00054794,120]
[322308694,1712944244684,-1013.26,0.00054794,120]
[322308696,1712944244694,-500.0,0.00054794,120]
[322308697,1712944244703,-3960.47,0.00054794,120]
[322308700,1712944244715,-341.64732285,0.00054794,120]
[322308702,1712944244725,-536.17016406,0.00054794,120]
[322308704,1712944244735,-500.0,0.00054794,120]
[322308706,1712944244745,-500.0,0.00054794,120]
[322308708,1712944244755,-1168.56,0.00054794,120]
[322308710,1712944244764,-741.67,0.00054794,120]
[322308712,1712944244774,-166.82709291,0.00054798,4]
[322308714,1712944244784,-155.6939493,0.0005661,120]
[322308716,1712944244793,-4974.12,0.00056711,30]
[322308718,1712944244802,-500.0,0.00056712,120]
[322308720,1712944244811,-602.76359374,0.00056712,120]
[322308722,1712944244821,-500.0,0.00056712,120]
[322308724,1712944244831,-500.0,0.00056712,120]
[322308726,1712944244841,-392.56815727,0.00056712,120]
[322308727,1712944244854,-503.02102843,0.00056712,120]
[322308730,1712944244865,-496.61556081,0.00056712,120]
[322308731,1712944244874,-292.9000006,0.00056712,7]
[322308733,1712944244884,-509.15,0.00056712,120]
[322308736,1712944244898,-228.57221835,0.00056712,120]
[322308738,1712944244908,-500.0,0.00056712,120]
[322308739,1712944244919,-500.0,0.00056712,120]
[322308741,1712944244929,-500.0,0.00056712,120]
[322308743,1712944244940,-500.0,0.00056712,120]
[322308745,1712944244950,-505.2499761,0.00056712,120]
[322308747,1712944244959,-500.75401144,0.00056712,120]
[322308749,1712944244969,-503.36173929,0.00056712,120]
[322308751,1712944244979,-500.81315334,0.00056712,14]
[322308753,1712944244990,-500.0,0.00056712,120]
[322308755,1712944244999,-500.0,0.00056712,120]
[322308757,1712944245009,-172.52135492,0.00056712,120]
[322308759,1712944245019,-500.0,0.00056712,120]
[322308761,1712944245029,-500.0,0.00056712,120]
[322308763,1712944245039,-500.0,0.00056712,120]
[322308765,1712944245049,-500.0,0.00056712,120]
[322308767,1712944245059,-500.0,0.00056712,120]
[322308769,1712944245068,-500.0,0.00056712,120]
[322308771,1712944245077,-500.0,0.00056712,120]
[322308773,1712944245087,-229.11562185,0.00056712,120]
[322308775,1712944245097,-414.02794365,0.00056712,120]
[322308777,1712944245107,-500.0,0.00056712,120]
[322308779,1712944245116,-500.0,0.00056712,120]
[322308781,1712944245126,-500.0,0.00056712,120]
[322308783,1712944245135,-500.0,0.00056712,120]
[322308785,1712944245147,-500.0,0.00056712,120]
[322308787,1712944245156,-166.16504241,0.00056712,120]
[322308789,1712944245167,-500.0,0.00056712,120]
[322308791,1712944245176,-500.0,0.00056712,120]
[322308792,1712944245186,-500.0,0.00056712,120]
[322308794,1712944245196,-500.0,0.00056712,120]
[322308795,1712944245207,-500.0,0.00056712,120]
[322308797,1712944245218,-500.0,0.00056712,120]
[322308799,1712944245228,-1000.0,0.00056712,7]
[322308802,1712944245238,-500.0,0.00056712,120]
[322308803,1712944245249,-500.0,0.00056712,120]
[322308805,1712944245259,-500.0,0.00056712,120]
[322308807,1712944245270,-500.0,0.00056712,120]
[322308809,1712944245279,-508.71,0.00056712,120]
[322308811,1712944245289,-500.0,0.00056712,120]
[322308813,1712944245299,-500.0,0.00056712,120]
[322308815,1712944245310,-503.79762772,0.00056712,120]
[322308817,1712944245319,-500.0,0.00056712,120]
[322308819,1712944245329,-500.0,0.00056712,120]
[322308821,1712944245339,-500.0,0.00056712,120]
[322308822,1712944245349,-500.0,0.00056712,120]
[322308824,1712944245359,-500.0,0.00056712,120]
[322308826,1712944245369,-500.0,0.00056712,120]
[322308828,1712944245378,-500.0,0.00056712,120]
[322308829,1712944245388,-500.0,0.00056712,120]
[322308831,1712944245400,-500.0,0.00056712,120]
[322308833,1712944245410,-500.0,0.00056712,120]
[322308834,1712944245419,-500.0,0.00056712,120]
[322308835,1712944245430,-500.0,0.00056712,120]
[322308836,1712944245440,-332.07014079,0.00056712,120]
[322308837,1712944245450,-500.0,0.00056712,120]
[322308838,1712944245460,-500.0,0.00056712,120]
[322308839,1712944245470,-500.0,0.00056712,120]
[322308840,1712944245480,-500.0,0.00056712,120]
[322308841,1712944245490,-643.00166662,0.00056712,120]
[322308842,1712944245499,-606.67,0.00056712,120]
[322308843,1712944245509,-500.0,0.00056712,120]
[322308844,1712944245520,-500.0,0.00056712,120]
[322308845,1712944245530,-500.0,0.00056712,120]
[322308846,1712944245540,-500.0,0.00056712,120]
[322308847,1712944245549,-500.0,0.00056712,120]
[322308848,1712944245559,-500.0,0.00056712,120]
[322308849,1712944245569,-500.0,0.00056712,120]
[322308850,1712944245578,-500.0,0.00056712,120]
[322308851,1712944245587,-299.11170737,0.00056712,120]
[322308852,1712944245597,-500.0,0.00056712,120]
[322308853,1712944245606,-500.0,0.00056712,120]
[322308854,1712944245615,-500.0,0.00056712,120]
[322308855,1712944245625,-500.0,0.00056712,120]
[322308856,1712944245635,-500.0,0.00056712,120]
[322308857,1712944245646,-500.0,0.00056712,120]
[322308858,1712944245655,-500.0,0.00056712,120]
[322308859,1712944245665,-500.0,0.00056712,120]
[322308860,1712944245674,-500.0,0.00056712,120]
[322308861,1712944245682,-500.0,0.00056712,120]
[322308862,1712944245691,-500.0,0.00056712,120]
[322308863,1712944245700,-500.0,0.00056712,120]
[322308864,1712944245709,-500.0,0.00056712,120]
[322308865,1712944245718,-183.08105187,0.00056712,120]
[322308866,1712944245728,-500.0,0.00056712,120]
[322308867,1712944245737,-500.0,0.00056712,120]
[322308868,1712944245747,-896.63,0.00056712,120]
[322308869,1712944245755,-751.59,0.00056712,120]
[322308870,1712944245764,-500.0,0.00056712,120]
[322308871,1712944245773,-500.0,0.00056712,120]
[322308872,1712944245782,-500.0,0.00056712,120]
[322308873,1712944245792,-500.0,0.00056712,120]
[322308874,1712944245801,-500.0,0.00056712,120]
[322308875,1712944245810,-300.0,0.00056712,7]
[322308876,1712944245819,-24487.54,0.00056712,120]
[322308877,1712944245828,-501.64572357,0.00056712,120]
[322308878,1712944245838,-500.0,0.00056712,120]
[322308879,1712944245852,-500.0,0.00056712,120]
[322308880,1712944245861,-500.0,0.00056712,120]
[322308881,1712944245870,-500.0,0.00056712,120]
[322308882,1712944245881,-500.0,0.00056712,120]
[322308883,1712944245891,-500.0,0.00056712,120]
[322308884,1712944245905,-500.0,0.00056712,120]
[322308885,1712944245914,-1597.15,0.00056712,21]
[322308886,1712944245925,-500.0,0.00056712,120]
[322308887,1712944245935,-601.74944351,0.00056712,120]
[322308888,1712944245944,-500.0,0.00056712,120]
[322308889,1712944245953,-500.0,0.00056712,120]
[322308890,1712944245962,-500.0,0.00056712,120]
[322308891,1712944245972,-587.64,0.00056712,120]
[322308892,1712944245981,-1113.96,0.00056712,120]
[322308895,1712944245990,-500.0,0.00056712,120]
[322308897,1712944246000,-500.0,0.00056712,120]
[322308898,1712944246009,-914.8,0.00056712,120]
[322308900,1712944246018,-500.0,0.00056712,120]
[322308902,1712944246027,-621.78,0.00056712,120]
[322308903,1712944246036,-2788.57,0.00056712,120]
[322308904,1712944246046,-1832.04,0.00056712,120]
[322308906,1712944246054,-500.0,0.00056712,120]
[322308908,1712944246064,-500.0,0.00056712,120]
[322308910,1712944246073,-500.0,0.00056712,120]
[322308911,1712944246082,-500.0,0.00056712,120]
[322308913,1712944246091,-961.76,0.00056712,120]
[322308915,1712944246102,-335.66,0.00056712,120]
[322308917,1712944246111,-500.0,0.00056712,120]
[322308922,1712944246121,-1119.87,0.00056712,120]
[322308925,1712944246130,-500.0,0.00056712,120]
[322308928,1712944246140,-500.0,0.00056712,120]
[322308931,1712944246150,-500.0,0.00056712,120]
[322308934,1712944246159,-516.20327059,0.00056712,120]
[322308937,1712944246168,-1497.12,0.00056712,120]
[322308939,1712944246178,-512.60081208,0.00056712,120]
[322308942,1712944246187,-500.0,0.00056712,120]
[322308945,1712944246196,-500.0,0.00056712,120]
[322308948,1712944246208,-500.0,0.00056712,120]
[322308950,1712944246217,-6525.26,0.00056712,120]
[322308971,1712944246294,-1000.0,0.00056712,120]
[322308975,1712944246304,-1013.26,0.00056712,120]
[322308979,1712944246314,-531.44,0.00056712,120]
[322308984,1712944246323,-3960.47,0.00056712,120]
[322308989,1712944246333,-500.0,0.00056712,120]
[322308994,1712944246346,-155.6939493,0.00058341,120]
[322309001,1712944246359,-156.35832817,0.00058489,120]
[322309006,1712944246369,-603.90560033,0.00058628,2]
[322309012,1712944246378,-241.11331488,0.00058628,2]
[322309016,1712944246387,-16904.2858321,0.00058628,4]
[322309023,1712944246396,-536.31725902,0.00058628,4]
[322309028,1712944246406,-215.764455,0.00058628,4]
[322309035,1712944246416,-2091.81921779,0.00058628,4]
[322309038,1712944246425,-200.26900615,0.00058629,4]
[322309041,1712944246434,-1511.8915568,0.00058629,4]
[322309046,1712944246444,-271.8195425,0.00058629,4]
[322309048,1712944246453,-155.21758575,0.00058629,4]
[322309051,1712944246462,-155.45139245,0.00058629,4]
[322309055,1712944246471,-283.87772596,0.00058629,4]
[322309058,1712944246480,-173.67326272,0.00058629,4]
[322309061,1712944246489,-2029.35454976,0.00058629,4]
[322309064,1712944246498,-500.0,0.0005863,120]